fUSD/lending_fUSD_20260203
["ID","MTS","AMOUNT","RATE_DAILY","PERIOD"]
[404394109,1770097840031,-500.0,0.00013698,2]
[404394110,1770097840040,-500.0,0.00013698,2]
[404394111,1770097840049,-500.0,0.00013698,2]
[404394112,1770097840058,-500.0,0.00013698,2]
[404394113,1770097840067,-500.0,0.00013698,2]
[404394114,1770097840076,-500.0,0.00013698,2]
[404394115,1770097840085,-500.0,0.00013698,2]
[404394116,1770097840094,-371.76186134,0.00013698,2]
[404394117,1770097840103,-7243.61,0.00013699,2]
[404394118,1770097840112,-500.0,0.00013699,2]
[404394119,1770097840122,-500.0,0.00013699,2]
[404394120,1770097840131,-500.0,0.00013699,2]
[404394121,1770097840142,-500.0,0.00013699,2]
[404394122,1770097840151,-500.0,0.00013699,2]
[404394123,1770097840160,-154.0,0.000137,2]
[404394124,1770097840169,-154.0,0.000137,2]
[404394125,1770097840178,-731.6,0.00013704,2]
[404394126,1770097840188,-19170.31,0.00013734,2]
[404394127,1770097840198,-150.01125708,0.00013745,2]
[404394128,1770097840417,-731.6,0.00013978,2]
[404394129,1770097840427,-166.66,0.00014088,2]
[404394130,1770097840436,-5147.37,0.00014181,2]
[404394131,1770097840445,-1000.0,0.00014247,2]
[404394133,1770097840454,-1000.0,0.00014247,2]
[404394134,1770097840463,-1001.21553048,0.00014247,2]
[404394135,1770097840472,-731.6,0.00014252,2]
[404394136,1770097840481,-36009.27921402,0.00014432,2]
[404394137,1770097840490,-1168.35435197,0.00014517,2]
[404394138,1770097840499,-731.6,0.00014526,2]
[404394139,1770097840508,-166.66,0.00014538,2]
[404394140,1770097840517,-154.0,0.000146,2]
[404394141,1770097840538,-154.0,0.000146,2]
[404394142,1770097840548,-500.0,0.00014685,2]
[404394143,1770097840557,-495.7739334,0.00014795,2]
[404394144,1770097840566,-369.98194845,0.00014795,2]
[404394145,1770097840575,-731.66,0.000148,2]
[404394146,1770097840585,-154.0,0.000149,2]
[404394147,1770097840596,-154.0,0.000149,2]
[404394148,1770097840607,-154.0,0.000149,2]
[404394149,1770097840618,-154.0,0.000149,2]
[404394150,1770097840628,-5156.0782525,0.00014929,2]
[404394151,1770097840639,-500.0,0.00014986,2]
[404394152,1770097840648,-166.66,0.00014989,2]
[404394153,1770097840657,-250.0,0.00015,2]
[404394154,1770097840667,-9257.47192736,0.0001505,2]
[404394155,1770097840676,-1000.0,0.0001511,2]
[404394156,1770097840691,-166.66,0.00015439,2]
[404394157,1770097840700,-160.0,0.00015533,2]
[404394158,1770097840710,-398.19,0.00015549,2]
[404394159,1770097840722,-36009.27921402,0.00015555,2]
[404394160,1770097840733,-200.0,0.00015592,2]
[404394161,1770097840742,-151.0,0.00015616,2]
[404394162,1770097840751,-500.0,0.00015867,2]
[404394163,1770097840760,-166.66,0.00015889,2]
[404394164,1770097840769,-1500.0,0.00016,2]
[404394165,1770097840779,-256.701042,0.00016,2]
[404394166,1770097840788,-150.0,0.00016,2]
[404394167,1770097840797,-500.0,0.00016027,2]
[404394168,1770097840806,-9999.99,0.00016116,2]
[404394169,1770097840815,-578.20924308,0.00016125,2]
[404394170,1770097840823,-174.61919141,0.00016125,2]
[404394171,1770097840832,-209.40437684,0.00016125,2]
[404394172,1770097840841,-500.0,0.00016125,2]
[404394173,1770097840850,-500.0,0.00016125,2]
[404394174,1770097840859,-500.0,0.00016125,2]
[404394175,1770097840869,-500.0,0.00016125,2]
[404394176,1770097840878,-500.0,0.00016125,2]
[404394177,1770097840887,-500.0,0.00016125,2]
[404394178,1770097840898,-500.0,0.00016125,2]
[404394179,1770097840907,-500.0,0.00016125,2]
[404394180,1770097840915,-500.0,0.00016125,2]
[404394181,1770097840925,-500.0,0.00016125,2]
[404394182,1770097840934,-500.0,0.00016125,2]
[404394183,1770097840944,-322.6107,0.00016125,2]
[404394184,1770097840955,-721.12765535,0.00016125,2]
[404394185,1770097840965,-209.40437684,0.00016125,2]
[404394186,1770097840975,-1428.38747117,0.00016125,2]
[404394187,1770097840985,-151.0,0.00016164,2]
[404394188,1770097840994,-217.15233878,0.0001618,2]
[404394189,1770097841004,-159.65710457,0.00016226,2]
[404394190,1770097841015,-225.18697532,0.00016235,2]
[404394191,1770097841024,-150.01125708,0.00016242,2]
[404394192,1770097841034,-233.51889341,0.0001629,2]
[404394193,1770097841043,-242.15909246,0.00016345,2]
[404394194,1770097841053,-251.11897888,0.000164,2]
[404394195,1770097841061,-5156.0782525,0.00016414,2]
[404394196,1770097841072,-1600.0,0.0001642,2]
[404394197,1770097841082,-169.96770096,0.00016428,2]
[404394198,1770097841093,-1911.41410949,0.00016438,2]
[404394199,1770097841103,-500.0,0.00016438,2]
[404394200,1770097841114,-500.0,0.00016438,2]
[404394201,1770097841126,-500.0,0.00016438,2]
[404394202,1770097841138,-330.22332732,0.00016438,2]
[404394203,1770097841150,-500.0,0.00016438,2]
[404394204,1770097841159,-500.0,0.00016438,2]
[404394205,1770097841168,-500.0,0.00016438,2]
[404394206,1770097841178,-500.0,0.00016438,2]
[404394207,1770097841187,-500.0,0.00016438,2]
[404394208,1770097841196,-500.0,0.00016438,2]
[404394209,1770097841205,-500.0,0.00016438,2]
[404394210,1770097841215,-500.0,0.00016438,2]
[404394211,1770097841224,-500.0,0.00016438,2]
[404394212,1770097841234,-500.0,0.00016438,2]
[404394213,1770097841243,-158.4906855,0.00016438,2]
[404394214,1770097841252,-500.0,0.00016438,2]
[404394215,1770097841261,-500.0,0.00016438,2]
[404394216,1770097841270,-500.0,0.00016438,2]
[404394217,1770097841279,-500.0,0.00016438,2]
[404394218,1770097841287,-500.0,0.00016438,2]
[404394219,1770097841296,-500.0,0.00016438,2]
[404394220,1770097841305,-500.0,0.00016438,2]
[404394221,1770097841315,-500.0,0.00016438,2]
[404394222,1770097841324,-500.0,0.00016438,2]
[404394223,1770097841333,-500.0,0.00016438,2]
[404394224,1770097841342,-500.0,0.00016438,2]
[404394225,1770097841352,-500.0,0.00016438,2]
[404394226,1770097841361,-500.0,0.00016438,2]
[404394227,1770097841370,-500.0,0.00016438,2]
[404394228,1770097841379,-500.0,0.00016438,2]
[404394229,1770097841388,-500.0,0.00016438,2]
[404394230,1770097841398,-500.0,0.00016438,2]
[404394231,1770097841407,-500.0,0.00016438,2]
[404394232,1770097841416,-500.0,0.00016438,2]
[404394233,1770097841425,-500.0,0.00016438,2]
[404394234,1770097841435,-500.0,0.00016438,2]
[404394235,1770097841444,-500.0,0.00016438,2]
[404394236,1770097841453,-500.0,0.00016438,2]
[404394237,1770097841462,-500.0,0.00016438,2]
[404394238,1770097841471,-3343.44426741,0.00016438,2]
[404394239,1770097841480,-3343.44426741,0.00016438,2]
[404394240,1770097841489,-3343.44426741,0.00016438,2]
[404394241,1770097841498,-3343.44426741,0.00016438,2]
[404394242,1770097841507,-3343.44426741,0.00016438,2]
[404394243,1770097841516,-3343.44426741,0.00016438,2]
[404394244,1770097841525,-3343.44426741,0.00016438,2]
[404394245,1770097841534,-3343.44426741,0.00016438,2]
[404394246,1770097841543,-3343.44426741,0.00016438,2]
[404394247,1770097841552,-3343.44426741,0.00016438,2]
[404394248,1770097841561,-3343.44426741,0.00016438,2]
[404394249,1770097841570,-3343.44426741,0.00016438,2]
[404394250,1770097841579,-3343.44426741,0.00016438,2]
[404394251,1770097841588,-3343.44426741,0.00016438,2]
[404394252,1770097841596,-3343.44426741,0.00016438,2]
[404394253,1770097841605,-3343.44426741,0.00016438,2]
[404394254,1770097841614,-3343.44426741,0.00016438,2]
[404394255,1770097841623,-3343.44426741,0.00016438,2]
[404394256,1770097841635,-3343.44426741,0.00016438,2]
[404394257,1770097841646,-3343.44426741,0.00016438,2]
[404394258,1770097841656,-3343.44426741,0.00016438,2]
[404394259,1770097841665,-3343.44426741,0.00016438,2]
[404394260,1770097841676,-3343.44426741,0.00016438,2]
[404394261,1770097841692,-3343.44426741,0.00016438,2]
[404394262,1770097841701,-3343.44426741,0.00016438,2]
[404394263,1770097841713,-3343.44426741,0.00016438,2]
[404394264,1770097841723,-3343.44426741,0.00016438,2]
[404394265,1770097841733,-3343.44426741,0.00016438,2]
[404394266,1770097841745,-3343.44426741,0.00016438,2]
[404394267,1770097841755,-3343.44426741,0.00016438,2]
[404394268,1770097841765,-3343.44426741,0.00016438,2]
[404394269,1770097841776,-3343.44426741,0.00016438,2]
[404394270,1770097841786,-3343.44426741,0.00016438,2]
[404394271,1770097841796,-3343.44426741,0.00016438,2]
[404394272,1770097841806,-3343.44426741,0.00016438,2]
[404394273,1770097841816,-3343.44426741,0.00016438,2]
[404394274,1770097841827,-3343.44426741,0.00016438,2]
[404394275,1770097841836,-3343.44426741,0.00016438,2]
[404394276,1770097841846,-3343.44426741,0.00016438,2]
[404394277,1770097841855,-3192.66148671,0.00016438,2]
[404394278,1770097841864,-3192.66148671,0.00016438,2]
[404394279,1770097841873,-3192.66148671,0.00016438,2]
[404394280,1770097841882,-3192.66148671,0.00016438,2]
[404394281,1770097841891,-3192.66148671,0.00016438,2]
[404394282,1770097841900,-3192.66148671,0.00016438,2]
[404394283,1770097841909,-3192.66148671,0.00016438,2]
[404394284,1770097841918,-3192.66148671,0.00016438,2]
[404394285,1770097841927,-3192.66148671,0.00016438,2]
[404394286,1770097841936,-3192.66148671,0.00016438,2]
[404394287,1770097841946,-3192.66148671,0.00016438,2]
[404394288,1770097841957,-3192.66148671,0.00016438,2]
[404394289,1770097841968,-3192.66148671,0.00016438,2]
[404394290,1770097841977,-3192.66148671,0.00016438,2]
[404394291,1770097841988,-3192.66148671,0.00016438,2]
[404394292,1770097841997,-3192.66148671,0.00016438,2]
[404394293,1770097842008,-3192.66148671,0.00016438,2]
[404394294,1770097842018,-200.0,0.00016438,2]
[404394295,1770097842028,-260.4103811,0.00016455,2]
[404394296,1770097842038,-270.0455652,0.0001651,2]
[404394297,1770097842047,-166.66,0.00016525,2]
[404394298,1770097842057,-200.05997466,0.00016546,2]
[404394299,1770097842067,-280.03725112,0.00016565,2]
[404394300,1770097842076,-471.47764088,0.00016583,2]
[404394301,1770097842085,-1084.09055279,0.00016583,2]
[404394302,1770097842094,-290.39862941,0.0001662,2]
[404394303,1770097842103,-181.08010149,0.00016673,2]
[404394304,1770097842112,-354.84887414,0.00016673,2]
[404394305,1770097842121,-1481.23780761,0.00016673,2]
[404394306,1770097842130,-301.1433787,0.00016675,2]
[404394307,1770097842141,-36009.27921402,0.00016677,2]
[404394308,1770097842150,-1584.0,0.000167,2]
[404394309,1770097842159,-151.0,0.00016712,2]
[404394310,1770097842168,-166.66,0.00016873,2]
[404394311,1770097842178,-154.0,0.000169,3]
[404394312,1770097842187,-154.0,0.000169,3]
[404394313,1770097842196,-154.0,0.000169,2]
[404394314,1770097842206,-366.60248148,0.000169,5]
[404394315,1770097842215,-200.0,0.00016983,2]
[404394316,1770097842225,-1000.0,0.00016999,2]
[404394317,1770097842234,-300.0,0.00017,2]
[404394318,1770097842243,-166.66,0.00017221,2]
[404394319,1770097842253,-187.78006525,0.00017221,2]
[404394320,1770097842262,-1536.04360649,0.00017221,2]
[404394321,1770097842272,-151.0,0.0001726,2]
[404394322,1770097842281,-398.19,0.00017364,2]
[404394323,1770097842290,-159.65710457,0.00017385,2]
[404394324,1770097842300,-4800.0,0.000174,6]
[404394325,1770097842309,-150.01125708,0.0001749,2]
[404394326,1770097842318,-334.5472959,0.00017494,2]
[404394327,1770097842327,-500.0,0.000175,6]
[404394328,1770097842337,-900.0,0.000175,6]
[404394329,1770097842346,-25837.1765527,0.00017505,2]
[404394330,1770097842355,-166.66,0.00017568,2]
[404394331,1770097842365,-500.0,0.000176,6]
[404394332,1770097842374,-900.0,0.000176,6]
[404394333,1770097842383,-5888.0,0.00017658,2]
[404394334,1770097842393,-500.0,0.000177,6]
[404394335,1770097842402,-900.0,0.000177,6]
[404394336,1770097842411,-194.72792766,0.00017769,2]
[404394337,1770097842421,-5888.0,0.00017795,2]
[404394338,1770097842430,-36009.27921402,0.000178,2]
[404394339,1770097842440,-500.0,0.000178,6]
[404394340,1770097842449,-900.0,0.000178,6]
[404394341,1770097842458,-233.0,0.00017804,2]
[404394342,1770097842467,-151.0,0.00017808,2]
[404394343,1770097842476,-151.0,0.00017897,2]
[404394344,1770097842486,-1000000.0,0.000179,2]
[404394345,1770097842495,-2617.0576,0.000179,2]
[404394346,1770097842504,-33292.3487,0.000179,2]
[404394347,1770097842512,-7798.7438,0.000179,2]
[404394348,1770097842521,-1000.0,0.000179,2]
[404394349,1770097842530,-500.0,0.000179,2]
[404394350,1770097842539,-10000.0,0.000179,2]
[404394351,1770097842549,-20715.87842944,0.000179,3]
[404394353,1770097842558,-154.0,0.000179,3]
[404394354,1770097842568,-154.0,0.000179,3]
[404394355,1770097842577,-154.0,0.000179,3]
[404394356,1770097842587,-160.0,0.000179,3]
[404394357,1770097842596,-200.0,0.000179,5]
[404394358,1770097842605,-994.0,0.000179,6]
[404394359,1770097842614,-1168.35435197,0.000179,2]
[404394360,1770097842622,-1500.0,0.000179,6]
[404394361,1770097842631,-9257.47192736,0.000179,2]
[404394362,1770097842640,-166.66,0.00017916,2]
[404394363,1770097842650,-169.96770096,0.0001799,2]
[404394364,1770097842659,-151.0,0.00017997,2]
[404394365,1770097842668,-96104.18158648,0.00017999,2]
[404394366,1770097842680,-300.0,0.00017999,2]
[404394367,1770097842688,-300.0,0.00017999,2]
[404394368,1770097842698,-666.0,0.00017999,2]
[404394369,1770097842707,-4315576.13306063,0.00018,2]
[404394370,1770097842982,-4282.22884414,0.00018,2]
[404394371,1770097843086,-2775.76967567,0.00018,2]
[404394372,1770097843411,-0.00040914,0.00018,2]
[404394373,1770097843440,-7428432.46128505,0.00018,2]
[404394379,1770097843684,-783.94939895,0.00012121,2]
[404394393,1770097846051,-118.46437961,0.00012121,2]
[404394394,1770097846061,-1000.0,0.00014714,2]
[404394395,1770097846071,-1000.0,0.00014714,2]
[404394396,1770097846080,-1000.0,0.00014714,2]
[404394397,1770097846091,-1218.70026516,0.00015476,2]
[404394398,1770097846102,-188.17333529,0.00015492,2]
[404394399,1770097846114,-1000.0,0.0001726,2]
[404394400,1770097846125,-5156.0782525,0.000179,2]
[404394401,1770097846136,-709.20876112,0.00018,2]
[404394402,1770097846161,-326.88101844,0.00018,2]
[404394405,1770097973965,273.09570713,8.219e-05,2]
[404394406,1770097979451,500.0,7.596e-05,2]
[404394407,1770097979488,524.4478525,7.596e-05,2]
[404394408,1770097979913,500.0,7.596e-05,2]
[404394409,1770097980081,500.0,7.596e-05,2]
[404394410,1770097980921,500.0,7.596e-05,2]
[404394411,1770097981267,250.0,7.596e-05,2]
[404394421,1770099031842,-280.58,8.6e-05,2]
[404394422,1770099031852,-222.0,8.6e-05,2]
[404394423,1770099031861,-250.0,8.609e-05,2]
[404394424,1770099031871,-198.39137328,8.644e-05,2]
[404394425,1770099031880,-154.3289,8.673e-05,2]
[404394426,1770099031889,-495.76472611,8.773e-05,2]
[404394427,1770099031900,-4.23527389,8.773e-05,2]
[404394428,1770099031909,-200.0,9.062e-05,2]
[404394429,1770099031919,-95.75472611,9.191e-05,2]
[404394430,1770099031930,-852.47881671,9.191e-05,2]
[404394431,1770099031949,-303.999998,9.191e-05,2]
[404394432,1770099031960,-7078.45645918,9.191e-05,2]
[404394433,1770099031970,-849.45,9.305e-05,2]
[404394434,1770099031980,-347.37162909,9.321e-05,2]
[404394435,1770099031989,-300.0,9.458e-05,2]
[404394436,1770099031999,-1200.0,9.458e-05,2]
[404394437,1770099032008,-150.0,9.459e-05,2]
[404394438,1770099032017,-300.0,9.459e-05,2]
[404394462,1770099032296,-4999.99,9.46e-05,2]
[404394464,1770099032306,-150.99,9.46e-05,2]
[404394466,1770099032316,-4137.81995272,9.46e-05,2]
[404394469,1770099032327,-5862.17004728,9.46e-05,2]
[404394471,1770099032336,-9999.99,9.46e-05,2]
[404394472,1770099032345,-299.99,9.46e-05,2]
[404394475,1770099032354,-9999.99,9.46e-05,2]
[404394476,1770099032363,-150.99,9.46e-05,2]
[404394478,1770099032372,-999.99,9.46e-05,2]
[404394481,1770099032382,-300.0,9.46e-05,2]
[404394482,1770099032392,-250.0,9.46e-05,2]
[404394485,1770099032401,-250.0,9.46e-05,2]
[404394486,1770099032412,-5136.81,9.536e-05,2]
[404394488,1770099032422,-187.04,9.6e-05,2]
[404394491,1770099032432,-13564.57,9.756e-05,2]
[404394493,1770099032441,-165.0,9.893e-05,2]
[404394495,1770099032450,-1977.86882031,0.0001,2]
[404394497,1770099032459,-170.34718645,0.0001,2]
[404394499,1770099032468,-420.0,0.00010404,2]
[404394501,1770099032478,-1680.0,0.00010404,2]
[404394503,1770099032487,-255.0,0.00010405,2]
[404394505,1770099032496,-420.0,0.00010405,2]
[404394507,1770099032505,-3482.9174555,0.00010499,2]
[404394509,1770099032516,-883.14463657,0.00010499,2]
[404394511,1770099032526,-150.02510625,0.000105,2]
[404394513,1770099032535,-169.96770096,0.0001059,2]
[404394515,1770099032545,-169.96770096,0.0001059,2]
[404394517,1770099032555,-151.0,0.00010597,2]
[404394519,1770099032564,-2689.42474874,0.00010598,2]
[404394521,1770099032579,-6568.04717862,0.00010598,2]
[404394522,1770099032588,-1168.35435197,0.00010598,2]
[404394523,1770099032597,-507.83281515,0.00010599,2]
[404394524,1770099032608,-292.70941998,0.00010599,2]
[404394525,1770099032617,-209.0063972,0.00010599,2]
[404394526,1770099032626,-500.0,0.00010599,2]
[404394527,1770099032636,-270.69604629,0.00010599,2]
[404394528,1770099032645,-500.0,0.00010599,2]
[404394529,1770099032655,-500.0,0.00010599,2]
[404394530,1770099032665,-500.0,0.00010599,2]
[404394531,1770099032674,-500.0,0.00010599,2]
[404394532,1770099032684,-500.0,0.00010599,2]
[404394533,1770099032693,-500.0,0.00010599,2]
[404394534,1770099032702,-500.0,0.00010599,2]
[404394535,1770099032712,-500.0,0.00010599,2]
[404394536,1770099032721,-500.0,0.00010599,2]
[404394537,1770099032730,-500.0,0.00010599,2]
[404394538,1770099032739,-500.0,0.00010599,2]
[404394539,1770099032749,-500.0,0.00010599,2]
[404394540,1770099032758,-500.0,0.00010599,2]
[404394541,1770099032767,-500.0,0.00010599,2]
[404394542,1770099032776,-500.0,0.00010599,2]
[404394543,1770099032786,-500.0,0.00010599,2]
[404394544,1770099032795,-500.0,0.00010599,2]
[404394545,1770099032804,-533.19967637,0.00010599,2]
[404394546,1770099032815,-500.0,0.00010599,2]
[404394547,1770099032824,-500.0,0.00010599,2]
[404394548,1770099032834,-500.0,0.00010599,2]
[404394549,1770099032848,-500.0,0.00010599,2]
[404394550,1770099032859,-500.0,0.00010599,2]
[404394551,1770099032868,-500.0,0.00010599,2]
[404394552,1770099032878,-500.0,0.00010599,2]
[404394553,1770099032889,-500.0,0.00010599,2]
[404394554,1770099032900,-500.0,0.00010599,2]
[404394555,1770099032910,-500.0,0.00010599,2]
[404394556,1770099032928,-500.0,0.00010599,2]
[404394557,1770099032945,-500.0,0.00010599,2]
[404394558,1770099032955,-500.0,0.00010599,2]
[404394559,1770099032964,-500.0,0.00010599,2]
[404394560,1770099032973,-500.0,0.00010599,2]
[404394561,1770099032983,-500.0,0.00010599,2]
[404394562,1770099032992,-500.0,0.00010599,2]
[404394563,1770099033001,-500.0,0.00010599,2]
[404394564,1770099033011,-500.0,0.00010599,2]
[404394565,1770099033021,-500.0,0.00010599,2]
[404394566,1770099033030,-500.0,0.00010599,2]
[404394567,1770099033040,-500.0,0.00010599,2]
[404394568,1770099033050,-500.0,0.00010599,2]
[404394569,1770099033060,-500.0,0.00010599,2]
[404394570,1770099033074,-500.0,0.00010599,2]
[404394571,1770099033083,-500.0,0.00010599,2]
[404394572,1770099033092,-500.0,0.00010599,2]
[404394573,1770099033103,-500.0,0.00010599,2]
[404394574,1770099033112,-600.0,0.00010599,2]
[404394575,1770099033123,-500.0,0.00010599,2]
[404394576,1770099033132,-500.0,0.00010599,2]
[404394577,1770099033143,-500.0,0.00010599,2]
[404394578,1770099033153,-500.0,0.00010599,2]
[404394579,1770099033162,-812.46684346,0.00010599,2]
[404394580,1770099033172,-15558.58192649,0.00010599,2]
[404394581,1770099033182,-188.17333529,0.00010599,2]
[404394582,1770099033192,-800.0,0.000106,3]
[404394583,1770099033201,-171677.81985214,0.000106,2]
[404394584,1770099033215,-7457.87179023,0.000106,2]
[404394585,1770099033230,-776.15703811,0.000106,2]
[404394588,1770099037897,-963.02821688,0.000106,2]
[404394591,1770099037908,-142691.07511695,0.000106,2]
[404394597,1770099037956,-1976.88057105,0.000106,2]
[404394600,1770099038016,-3174457.16741464,0.000106,2]
[404394601,1770099038026,-2512.96705404,0.00010699,2]
[404394602,1770099038036,-1621.14587754,0.00010699,2]
[404394603,1770099038046,-1600.0,0.000107,3]
[404394604,1770099038055,-151.0,0.00010794,2]
[404394605,1770099038065,-151.0,0.00010794,2]
[404394606,1770099038078,-151.0,0.00010794,2]
[404394607,1770099038088,-151.0,0.00010794,2]
[404394608,1770099038098,-151.0,0.00010794,2]
[404394609,1770099038107,-151.0,0.00010794,2]
[404394610,1770099038119,-151.0,0.00010794,2]
[404394611,1770099038128,-151.0,0.00010794,2]
[404394612,1770099038138,-151.0,0.00010794,2]
[404394613,1770099038148,-500.0,0.00010794,2]
[404394614,1770099038158,-151.0,0.00010794,2]
[404394615,1770099038168,-500.0,0.00010794,2]
[404394616,1770099038177,-151.0,0.00010794,2]
[404394617,1770099038187,-500.0,0.00010794,2]
[404394618,1770099038197,-151.0,0.00010794,2]
[404394619,1770099038207,-500.0,0.00010794,2]
[404394620,1770099038216,-151.0,0.00010794,2]
[404394621,1770099038226,-500.0,0.00010794,2]
[404394622,1770099038235,-500.0,0.00010794,2]
[404394623,1770099038245,-151.0,0.00010794,2]
[404394625,1770099038254,-500.0,0.00010794,2]
[404394626,1770099038263,-151.0,0.00010794,2]
[404394627,1770099038273,-500.0,0.00010794,2]
[404394628,1770099038282,-151.0,0.00010794,2]
[404394629,1770099038291,-500.0,0.00010794,2]
[404394630,1770099038301,-151.0,0.00010794,2]
[404394631,1770099038310,-151.0,0.00010794,2]
[404394632,1770099038320,-151.0,0.00010794,2]
[404394633,1770099038329,-500.0,0.00010794,2]
[404394635,1770099038338,-500.0,0.00010794,2]
[404394636,1770099038347,-151.0,0.00010794,2]
[404394638,1770099038357,-151.0,0.00010794,2]
[404394640,1770099038366,-500.0,0.00010794,2]
[404394643,1770099038375,-151.0,0.00010794,2]
[404394644,1770099038385,-151.0,0.00010794,2]
[404394646,1770099038395,-151.0,0.00010794,2]
[404394648,1770099038404,-151.0,0.00010794,2]
[404394650,1770099038414,-151.0,0.00010794,2]
[404394651,1770099038423,-151.0,0.00010794,2]
[404394652,1770099038432,-151.0,0.00010794,2]
[404394653,1770099038442,-151.0,0.00010794,2]
[404394654,1770099038451,-151.0,0.00010794,2]
[404394655,1770099038461,-151.0,0.00010794,2]
[404394656,1770099038470,-500.0,0.00010794,2]
[404394657,1770099038481,-500.0,0.00010794,2]
[404394658,1770099038491,-500.0,0.00010794,2]
[404394659,1770099038500,-500.0,0.00010794,2]
[404394660,1770099038509,-500.0,0.00010794,2]
[404394661,1770099038522,-500.0,0.00010794,2]
[404394662,1770099038532,-500.0,0.00010794,2]
[404394663,1770099038541,-500.0,0.00010794,2]
[404394664,1770099038551,-500.0,0.00010794,2]
[404394665,1770099038561,-500.0,0.00010794,2]
[404394666,1770099038570,-500.0,0.00010794,2]
[404394667,1770099038580,-2500.0,0.00010799,2]
[404394668,1770099038590,-152.47117233,0.000108,2]
[404394669,1770099038600,-2500.0,0.000108,3]
[404394670,1770099038610,-4186.368,0.00010889,2]
[404394671,1770099038620,-344.287,0.00010889,2]
[404394672,1770099038629,-3300.0,0.000109,3]
[404394673,1770099038638,-10000.0,0.00010999,2]
[404394674,1770099038648,-1206.3126247,0.00011099,2]
[404394675,1770099038658,-61444.75277575,0.00011099,2]
[404394676,1770099038667,-1206.3126247,0.00011236,2]
[404394677,1770099038678,-61444.7527757,0.00011237,2]
[404394678,1770099038689,-500.0,0.00011342,2]
[404394679,1770099038701,-250.0,0.00011363,2]
[404394680,1770099038717,-587.0,0.00011444,2]
[404394681,1770099038728,-2351.0,0.00011444,2]
[404394682,1770099038740,-433.0,0.00011445,2]
[404394683,1770099038749,-587.0,0.00011445,2]
[404394684,1770099038759,-150.02510625,0.00011676,2]
[404394685,1770099038771,-1206.3126247,0.00011874,2]
[404394686,1770099038791,-61444.7527757,0.00011874,2]
[404394687,1770099038801,-500.0,0.0001189,2]
[404394688,1770099038810,-2512.967054,0.00011899,2]
[404394689,1770099038820,-4200.0,0.000119,4]
[404394690,1770099038830,-1852.42,0.00011921,2]
[404394691,1770099038840,-464.55,0.00012069,2]
[404394692,1770099038849,-1621.14587752,0.00012499,2]
[404394693,1770099038859,-1206.3126247,0.00012511,2]
[404394694,1770099038869,-61444.7527757,0.00012512,2]
[404394695,1770099038879,-823.0,0.00012589,2]
[404394696,1770099038889,-3292.0,0.00012589,2]
[404394697,1770099038898,-214.0,0.0001259,2]
[404394698,1770099038908,-665.0,0.0001259,2]
[404394699,1770099038917,-150.02510625,0.00012852,2]
[404394700,1770099038927,-2512.967054,0.00013099,2]
[404394701,1770099038937,-1206.3126247,0.00013149,2]
[404394702,1770099038947,-61444.7527757,0.0001315,2]
[404394703,1770099038956,-355.0,0.00013397,2]
[404394704,1770099038966,-151.0,0.00013514,2]
[404394705,1770099038976,-151.0,0.00013552,2]
[404394706,1770099038985,-151.0,0.00013552,2]
[404394707,1770099038995,-151.0,0.00013552,2]
[404394708,1770099039005,-151.0,0.00013587,2]
[404394709,1770099039015,-35766.0,0.00013678,2]
[404394710,1770099039024,-151.0,0.00013695,2]
[404394711,1770099039034,-151.0,0.00013695,2]
[404394712,1770099039043,-500.0,0.00013698,2]